Cogmind - Beta 13 @@@ ROGUE MODE // 2024.06.11 @ 14:50:34 Player: SovietPaperclip Result: Self-destructed Performance ------------- Evolutions (1) 500 Regions Visited (3) 600 Robots Destroyed (43) 215 Value Destroyed (1243) 1243 Prototype IDs (1) 20 Alien Tech Used (0) 0 Bonus (149) 149 TOTAL SCORE: 2727 Bonus ------- High Alert Combat Kills 6 Follower Combat Kills 143 Cogmind --------- Core Integrity 123/400 Matter 274/300 Energy 92/100 System Corruption 0% Temperature Warning (318) Movement Core (1450) Ox28 Location -9/Storage Parts ------- > --- POWER (1) -------- (None) > --- PROPULSION (3) --- Light Treads > --- UTILITY (3) ------ Heat Sink Huge Storage Unit > --- WEAPON (2) ------- Particle Cannon > --- INVENTORY (25) --- Improved Ion Engine Improved Heat Sink Improved Terrain Scan Processor Medium Armor Plating Hardened Light Armor Plating Improved Light Armor Plating Shield Generator Particle Cannon Autogun Autogun Heavy Hammer Peak State ------------ > --- POWER ------------ Improved Ion Engine > --- PROPULSION ------- Light Treads Light Treads Wheel > --- UTILITY ---------- Huge Storage Unit Improved Light Armor Plating Improved Light Armor Plating > --- WEAPON ----------- Autogun Autogun > --- INVENTORY -------- Improved Ion Engine Heat Sink Improved Heat Sink Improved Terrain Scan Processor Improved Light Armor Plating Particle Cannon Particle Cannon Autogun Heavy Hammer [Rating: 18] Favorites ----------- Power Ion Engine Engine Ion Engine Propulsion Light Treads Treads Light Treads Wheel Wheel Utility Improved Light Armor Plating Device Heat Sink Storage Huge Storage Unit Protection Improved Light Armor Plating Weapon Autogun Energy Gun EM Pulse Gun Energy Cannon Beam Cannon Ballistic Gun Autogun Build | -11 -10 -9 -9 ------- Run | Yrd Mat Mat Sto Slots Evolved 2 | . . 2 . Power . | . . . . Propulsion 1 | . . 1 . Utility 1 | . . 1 . Weapon . | . . . . Parts Attached 37 | 8 2 19 8 Power 5 | 2 . 3 . Engine 5 | 2 . 3 . Core . | . . . . Reactor . | . . . . Propulsion 10 | 2 . 6 2 Treads 6 | 2 . 2 2 Leg . | . . . . Wheel 4 | . . 4 . Hover . | . . . . Flight . | . . . . Utility 9 | 1 2 5 1 Device 2 | . . 1 1 Storage 4 | 1 2 1 . Processor . | . . . . Hackware . | . . . . Protection 3 | . . 3 . Artifact . | . . . . Weapon 13 | 3 . 5 5 Energy Gun 3 | 2 . 1 . Energy Cannon 4 | . . 2 2 Ballistic Gun 6 | 1 . 2 3 Ballistic Cannon . | . . . . Launcher . | . . . . Special Weapon . | . . . . Impact Weapon . | . . . . Slashing Weapon . | . . . . Piercing Weapon . | . . . . Special Melee Weapon . | . . . . Unidentified Prototypes 1 | . . 1 . Parts Lost 20 | . 1 12 7 Power 3 | . . 2 1 Propulsion 9 | . . 6 3 Utility 3 | . . 2 1 Weapon 5 | . 1 2 2 Highest Loss Streak 5 | . 1 4 5 To Critical Strikes . | . . . . Average Slot Usage (%) 82 | . 80 78 94 Engine 11 | . 14 10 10 Treads 19 | . 28 16 15 Wheel 5 | . . 5 13 Device 3 | . . 3 7 Storage 11 | . 14 11 11 Protection 10 | . . 14 14 Energy Gun 2 | . 9 . . Energy Cannon 3 | . . 4 7 Ballistic Gun 12 | . 14 11 14 Naked Turns . | . . . . Heaviest Build 100 | 13 48 99 100 Greatest Support 63 | 40 40 63 20 Greatest Overweight (x) 31 | . 1 31 9 Average Overweight (x) 3 | . . 3 7 Largest Inventory Capacity 25 | 8 20 25 25 Average Capacity 22 | 7 18 24 25 Most Carried 11 | 2 5 11 11 Average Carried 5 | . 2 6 9 Final Capacity 25 | 8 20 25 25 Final Carried 11 | 1 5 9 11 Class Distribution -------------------- 87% | Mutant 12% | Scavenger-Mutant Dominant Class ---------------- Mutant | -10/Materials Mutant | -9/Materials Scavenger-Mutant | -9/Storage Resources | -11 -10 -9 -9 ----------- Run | Yrd Mat Mat Sto Matter Collected 1102 | 240 116 499 247 Remotely . | . . . . Salvage Created 1630 | . 560 636 434 Parts 110 | . 39 49 22 Haulers Intercepted 1 | . . . 1 Recyclers Shooed 1 | . . . 1 Parts Field Recycled . | . . . . Retrieved Matter . | . . . . Parts Self-Destructed . | . . . . Prevented . | . . . . Kills | -11 -10 -9 -9 ------- Run | Yrd Mat Mat Sto Combat Hostiles Destroyed 35 | . 13 15 7 Guns 25 | . 11 11 3 Cannons 8 | . . 4 4 AOE 2 | . 2 . . Classes Destroyed 8 | . 4 2 2 Worker 3 | . . 3 . Hauler 1 | . . . 1 Recycler 2 | . 1 . 1 Watcher 2 | . 1 1 . Swarmer 6 | . 3 3 . Grunt 23 | . 10 10 3 Protector 1 | . . . 1 Sentry 5 | . . 2 3 Best Kill Streak 4 | . 3 4 2 Combat Bots Only 4 | . 3 4 2 Max Kills in Single Turn 1 | . 1 1 1 Gunslinging . | . . . . Exploded 1 | . 1 . . Melee . | . . . . Uniques/NPCs Destroyed . | . . . . Combat | -11 -10 -9 -9 -------- Run | Yrd Mat Mat Sto Hostile Shots Fired 269 | . 51 133 85 Missed 44 | . 9 21 14 Damage Taken 2872 | . 494 1349 1029 Core 443 | . 166 127 150 Absorbed by Shields . | . . . . Core Remaining (%) 66 | 100 33 . . Volleys Fired 205 | . 57 105 43 Largest 2 | . 2 2 2 Hottest 91 | . 60 91 91 Shots Fired 315 | . 89 141 85 Gun 252 | . 89 106 57 Cannon 63 | . . 35 28 Launcher . | . . . . Special . | . . . . Kinetic 220 | . 57 106 57 Thermal 63 | . . 35 28 Explosive . | . . . . Electromagnetic 32 | . 32 . . Robot Hit Streak 22 | . 10 9 22 Robot Miss Streak 4 | . 4 4 3 Penetration Max . | . . . . Secondary Targets 1 | . 1 . . Max Gunslinging Chain 1 | . 1 . . Shots Hit Robots 209 | . 59 88 62 Core Hits 73 | . 27 30 16 Critical Kills 1 | . . . 1 Critical Parts Destroyed . | . . . . Critical Strikes 1 | . . . 1 Destroy 1 | . . . 1 Melee Attacks . | . . . . Impact . | . . . . Slashing . | . . . . Piercing . | . . . . Sneak Attacks . | . . . . Combat Hostiles . | . . . . Follow-up Attacks . | . . . . Damage Inflicted 3129 | . 791 1289 1049 Guns 2164 | . 595 905 664 Cannons 769 | . . 384 385 Explosions 196 | . 196 . . Melee . | . . . . Ramming . | . . . . Kinetic 1889 | . 320 905 664 Thermal 965 | . 196 384 385 Explosive . | . . . . Electromagnetic 275 | . 275 . . Impact . | . . . . Slashing . | . . . . Piercing . | . . . . Highest Corruption . | . . . . Average Corruption . | . . . . Corruption Purged . | . . . . Corruption Blocked . | . . . . Overload Shots . | . . . . Overflow Damage 9 | . . 9 . Projectiles . | . . . . Explosions 9 | . . 9 . Melee . | . . . . Knockbacks . | . . . . Impact . | . . . . Kinetic . | . . . . Secondary . | . . . . Self-Inflicted Damage 83 | . 39 44 . Shots 2 | . 1 1 . Rammed . | . . . . Targets Rammed . | . . . . Kicked . | . . . . Crushed . | . . . . Highest Temperature 341 | . 76 227 341 Average Temperature 50 | . 25 53 68 Received Heat Transfer 1290 | . 234 654 402 Siege Activations . | . . . . Robots Corrupted . | . . . . Combat Hostiles . | . . . . Parts Fried . | . . . . Impact Corruptions . | . . . . Robots Melted . | . . . . Combat Hostiles . | . . . . Parts Melted 5 | . . 1 4 Heat Transferred 1667 | . 250 777 640 Parts Sabotaged . | . . . . Parts Stolen . | . . . . Parts Stripped . | . . . . Power Chain Reactions 4 | . 4 . . Alert | -11 -10 -9 -9 ------- Run | Yrd Mat Mat Sto Peak Influence 460 | . 263 197 460 Initial 106 | . . 106 61 Average 122 | . 163 76 205 Maximum Alert Level 2 | . 1 . 2 Low Security (%) 80 | 100 68 100 43 Level 1 17 | . 31 . 49 Level 2 1 | . . . 7 Level 3 . | . . . . Level 4 . | . . . . Level 5 . | . . . . High Security . | . . . . Max Security . | . . . . Squads Dispatched 9 | . 3 3 3 Investigation 2 | . 1 1 . Extermination . | . . . . Reinforcement 5 | . 2 2 1 Assault 2 | . . . 2 Garrison . | . . . . Intercept . | . . . . Searches Triggered . | . . . . Construction Impeded . | . . . . Haulers Reinforced . | . . . . Active Scanning Responses . | . . . . Cargo Convoy Interrupts . | . . . . Stealth | -11 -10 -9 -9 --------- Run | Yrd Mat Mat Sto Distress Signals 3 | . 2 . 1 Communications Jammed . | . . . . Distress Signals . | . . . . Times Spotted 67 | . 21 21 25 Peak Tracking Total 8 | . 4 4 8 Tactical Retreats 4 | . 1 . 3 Traps | -11 -10 -9 -9 ------- Run | Yrd Mat Mat Sto Traps Triggered 2 | . 1 1 . Indirectly . | . . . . Trap Hack Attempts . | . . . . Triggered . | . . . . Disarmed 3 | . 3 . . Reprogrammed . | . . . . Reused . | . . . . Traps Extracted . | . . . . Installed . | . . . . Triggered . | . . . . Machines | -11 -10 -9 -9 ---------- Run | Yrd Mat Mat Sto Machines Disabled 6 | . 3 2 1 Max in Single Turn 1 | . 1 1 1 Machines Repaired . | . . . . Machines Dismantled . | . . . . Machines Sabotaged . | . . . . Overloaded Fab Kills . | . . . . Hacking | -11 -10 -9 -9 --------- Run | Yrd Mat Mat Sto Machines Accessed 6 | . 3 2 1 Terminals 6 | . 3 2 1 Fabricators . | . . . . Repair Stations . | . . . . Recycling Units . | . . . . Scanalyzers . | . . . . Garrison Access . | . . . . Total Hacks 10 | . 4 4 2 Successful 6 | . 2 4 . Failed 4 | . 2 . 2 Catastrophic . | . . . . Database Lockouts . | . . . . Manual 2 | . 1 1 . Terminals 10 | . 4 4 2 Fabricators . | . . . . Repair Stations . | . . . . Recycling Units . | . . . . Scanalyzers . | . . . . Garrison Access . | . . . . Terminal Hacks 6 | . 2 4 . Record 1 | . . 1 . Part Schematic 2 | . 1 1 . Unreport Threat 1 | . . 1 . Disarm Traps 1 | . 1 . . Zone Layout 1 | . . 1 . Fabricator Hacks . | . . . . Repair Station Hacks . | . . . . Recycling Unit Hacks . | . . . . Scanalyzer . | . . . . Garrison Access Hacks . | . . . . Unauthorized Hacks . | . . . . Terminals . | . . . . Fabricators . | . . . . Repair Stations . | . . . . Recycling Units . | . . . . Scanalyzers . | . . . . Garrison Access . | . . . . Data Cores Recovered . | . . . . Used . | . . . . Hacking Detections 4 | . 2 1 1 Full Trace Events . | . . . . Feedback Events . | . . . . Feedback Blocked . | . . . . Robot Schematics Acquired . | . . . . Robots Built . | . . . . Authchips . | . . . . Time . | . . . . Total Robot Build Rating . | . . . . Part Schematics Acquired 1 | . 1 . . Parts Built . | . . . . Authchips . | . . . . Time . | . . . . Total Part Build Rating . | . . . . Parts Repaired . | . . . . Time . | . . . . Parts Recycled . | . . . . Recycled Matter . | . . . . Retrieved Matter . | . . . . Retrieved Components . | . . . . Parts Scanalyzed . | . . . . Part Schematics Acquired . | . . . . Parts Damaged . | . . . . Bothacking | -11 -10 -9 -9 ------------ Run | Yrd Mat Mat Sto Used RIF Installer . | . . . . Robots Hacked . | . . . . Non-combat . | . . . . Combat . | . . . . Robot Hacks Applied . | . . . . Relay Couplers Released . | . . . . Fabnet Peak Effective % . | . . . . Robots Rewired . | . . . . Allies Hacked . | . . . . Hacks Repelled . | . . . . Allies | -11 -10 -9 -9 -------- Run | Yrd Mat Mat Sto Total Allies 2 | . . . 2 Largest Group 2 | . . . 2 Highest-Rated Group 62 | . . . 62 Highest-Rated Ally 31 | . . . 31 Total Orders . | . . . . Ally Attacks 56 | . . . 56 Total Damage 938 | . . . 938 Kills 8 | . . . 8 Allies Corrupted . | . . . . Allies Melted . | . . . . Intel | -11 -10 -9 -9 ------- Run | Yrd Mat Mat Sto Robot Analysis Total . | . . . . Derelict Logs Recovered . | . . . . Drone Launches . | . . . . Drone Recoveries . | . . . . Exploration | -11 -10 -9 -9 ------------- Run | Yrd Mat Mat Sto Turns Passed 2565 | 87 739 1278 461 Spaces Moved 841 | 50 250 389 152 Core 8 | 6 . 2 . Treads 523 | 44 250 229 . Legs . | . . . . Wheels 310 | . . 158 152 Hover . | . . . . Flight . | . . . . Fastest Speed 50 | 50 160 140 140 Average Speed 229 | 146 227 256 191 Slowest Speed 1600 | 160 240 1600 215 Overloaded Moves . | . . . . Propulsion Burnouts . | . . . . Robots Hopped . | . . . . Cave-ins Triggered . | . . . . Exploration Rate (%) 33 | 5 62 39 26 Regions Visited 3 Branch Regions 1 Pre-discovered Areas . | . . . . Known Exits Taken . | . . . . Unknown Exits Taken 3 | 1 1 1 . Scrap Searched . | . . . . Spaces Dug . | . . . . Terrain Destroyed 46 | . 14 32 . Melee . | . . . . Projectile . | . . . . AOE 46 | . 14 32 . Terrain Rammed . | . . . . Walls Destroyed . | . . . . Machines Disabled . | . . . . Actions | -11 -10 -9 -9 --------- Run | Yrd Mat Mat Sto Total 1195 | 60 344 546 245 Wait 78 | . 28 15 35 Move 838 | 49 249 388 152 Hop . | . . . . Pick Up 27 | 2 5 14 6 Fast Attach 18 | 6 2 10 . Attach 10 | . . 7 3 Detach . | . . . . Swap 9 | 2 . 2 5 Drop 10 | 1 3 5 1 Fire 205 | . 57 105 43 Melee . | . . . . Ram . | . . . . Kick . | . . . . Crush . | . . . . Escape Stasis . | . . . . Rewire . | . . . . Trap . | . . . . Miscellaneous . | . . . . Route ------- -11/Scrapyard -10/Materials (discovered 3 exits: *Mat / [*Min x2]) -9/Materials -9/Storage History --------- Turn | Location | Event 4 | -11/Scrapyard | Discovered new exit (range 14) 88 | -11/Scrapyard | Entered Materials 88 | -10/Materials | Discovered new exit (range 9) 318 | -10/Materials | Build established: Mutant 337 | -10/Materials | Discovered new exit (range 15) 694 | -10/Materials | Core integrity fell below 50% 762 | -10/Materials | Discovered new exit (range 16) 827 | -10/Materials | Entered another Materials area 827 | -9/Materials | Evolved 2 slots: Propulsion x1, Utility x1 1468 | -9/Materials | Lost 4 parts (2n1u1w) 1913 | -9/Materials | Discovered new exit (range 16) 2105 | -9/Materials | Entered Storage 2382 | -9/Storage | Met a pair of Derelict thieves 2543 | -9/Storage | Build established: Scavenger-Mutant 2552 | -9/Storage | Core integrity fell below 50% 2566 | -9/Storage | Self-destructed Last Messages --------------- 02495_ S-10 Pest suffers critical hit (Burn). 02497_ S-10 Pest destroyed. 02499_ GF-3JY(g) knocked back. 02501_ R-06 Scavenger collects Lrg. Battery. 02513_ R-06 Scavenger collects Lgt. Ion Engine. 02533_ Knocked back. 02542_ B-36 Bruiser destroyed. 02543_ G-34 Mercenary destroyed. 02551_ Wheel destroyed. 02553_ Lgt. Treads destroyed. 02558_ K-01 Serf collects debris. 02559_ Imp. Ion Engine destroyed. 02560_ G-47 Trooper destroyed. 02560_ Critical hit (Burn: +37). 02561_ Acquired 53 matter. 02562_ K-01 Serf collects debris. 02563_ Imp. Light Armor Plating destroyed. 02563_ Critical hit (Burn: +37). 02565_ Autogun destroyed. 02565_ K-01 Serf collects debris. Map ----- +----------------------------------------------------+ | ????# # """"""??????????? ??????????????????? | | ????# # "/!!%"??????????? ""????????????????? | | ????# # "!]%["??????????? ????????????????? | | ????# + """"" #????????? !????????????????? | | ????# # #########?! !????????????????? | | ????# # ##! !#? ????????????????? | | ????# # ## !#? ????????????????? | | ????# ###########!! #? ????????????????? | | ????# ########### !#?===????????????????? | | ????#! # ####" "##?#/#????????????????? | | ????# # / #?#T #?#%#????????????????? | | ????#% # #?## #?#%#????????????????? | | ????# # #?###;###?#[#????????????????? | | ????# + ### ####%####?????????????? | | ????# #! ! +% k !*%%%#! "?????????????? | | ????# # ### =!!]=/! "?????????????? | | ????# # ! #?# ######= "?????????????? | | ???## #####+####?## u##????##T#?????????????? | | ???# #??# #?????# #??????###?????????????? | | ???# #?## ##????# #??#######?????????????? | | ???# % ### #????#gk#? #?????????????? | | ???# #????#=*#? """#?????????????? | | ???# ### #????#=[# """#?????????????? | | ???##########+#######Y/# """#?????????????? | | ???????# /Y%=! """#?????????????? | | ???????# """"" # @# """#?????????????? | | ???????# """"" # # #?????????????? | | ???????# """"" # #? #?????????????? | | ???????# # #? #?????????????? | | ???????#########T#### #??#######?????????????? | | ???????????????###??# #??????????????????????? | | ????????????????????# #??????????????????????? | | ???????????????????? #??????????????????????? | | ???????????????????? #??????????????????????? | | ????????????????????#;##??????????????????????? | | ????????????????????# ????????????????????????? | | ????????????????????T ????????????????????????? | | ????????????????????#"????????????????????????? | | ??????????????????????????????????????????????? | | ??????????????????????????????????????????????? | | ??????????????????????????????????????????????? | | ??????????????????????????????????????????????? | | ??????????????????????????????????????????????? | | ??????????????????????????????????????????????? | | ??????????????????????????????????????????????? | | | | | | | | | | | +----------------------------------------------------+ Best States ------------- Heat Dissipation 38 Energy Generation 12 Energy Capacity 265 Matter Stores 300 Matter Capacity 300 Sight Range 16 Terrain Scan Density 10 Armor Coverage 300 Evasion (%) 40 Recoil Reduction 3 Item Schematics ----------------- Cargo Storage Unit | -10/Materials | Hacked Robot Schematics ------------------ None Fabricated ------------ Nothing Alien Tech Used ----------------- None Achievements -------------- None Challenges ------------ None Game ------ Seed ParticleKineticActivator Manual? 0 Play Time 00:17:26 Cumulative 120.2 hours Start 2024.06.11 @ 14:36:35 End 2024.06.11 @ 14:50:34 Sessions 1 Manual Loads 0 Difficulty Rogue Special Mode None Game No. 165 Rogue 165 Adventurer 0 Explorer 0 Win Type - Total 1 Types 1/0/0/0/0/0/0/0/0 Lore% 49 Gallery% 53 Achievement% 50 Wizard Run 0 Options --------- Layout 1 ASCII 0 Keyboard 0 Movement Mouse Keybinds 0 Fullscreen 1 Font 32/SmallcapsGlow Map View 50x35 Zoom Use 0% Tactical HUD 1 Map Filters NONE Filters NONE Steam 1 RUN: 9eca9fc0-7822-4417-aab3-f1bc19b9a363